Departmental Area,Entity,Payment Date,Expense type,Expense Area,Supplier Name,Payment Reference,Invoice Distribution Amount,Description,Supplier Type,Expenditure Type,,
UK Statistics Authority,Office for National Statistics,02/04/2020,Business Rates,Property Newport,Newport City Council,180522,"1,027,200.00", Business Rates for Newport ,Large,Programme Expenditure,,
UK Statistics Authority,Office for National Statistics,02/04/2020,Training & Development,Productivity Research And Professional Development,Capita Business Services Ltd,180527,"45,770.40", E-learning Services,Large,Programme Expenditure,,
UK Statistics Authority,Office for National Statistics,02/04/2020,Exp - Purchase Of Goods And Services Consultants,Productivity Research And Professional Development,Niesr,180530,"498,496.14", Statistical Services,SME,Programme Expenditure,,
UK Statistics Authority,Office for National Statistics,02/04/2020,Exp - Short-Term Contract & Agency Staff - Full Cost,Digital Publishing,LA International,180532,"2,658.02", Information Management Services,SME,Programme Expenditure,,
UK Statistics Authority,Office for National Statistics,02/04/2020,Travel And Subsistence,Digital Publishing,LA International,180532,24.12, Information Management Services,SME,Programme Expenditure,,
UK Statistics Authority,Office for National Statistics,02/04/2020,Exp - Purchase Of Goods/Services - Contractors,International Trade And Transactions,LA International,180532,"11,277.55", Information Management Services,SME,Programme Expenditure,,
UK Statistics Authority,Office for National Statistics,02/04/2020,Exp - Purchase Of Goods/Services - Contractors,IT Applications,LA International,180532,"3,139.80", Information Management Services,SME,Programme Expenditure,,
UK Statistics Authority,Office for National Statistics,02/04/2020,Exp - Purchase Of Goods/Services - Contractors,Digital Delivery,LA International,180532,"15,378.60", Information Management Services,SME,Programme Expenditure,,
UK Statistics Authority,Office for National Statistics,02/04/2020,Exp - Purchase Of Goods/Services - Other ICT Costs Software,Survey Processing Centre,Insight Direct,180533,"83,708.34", Software Licenses,Large,Programme Expenditure,,
UK Statistics Authority,Office for National Statistics,02/04/2020,Other Goods And Services,Productivity Research And Professional Development,London Economics,180539,"56,528.40", Information Management Services,SME,Programme Expenditure,,
UK Statistics Authority,Office for National Statistics,02/04/2020,Exp - Purchase Of Goods/Services - Contractors,International Trade And Transactions,Parity Resources Limited,180556,"4,777.39", Information Management Services,Large,Programme Expenditure,,
UK Statistics Authority,Office for National Statistics,02/04/2020,Exp - Short-Term Contract & Agency Staff - Full Cost,Productivity Research And Professional Development,Parity Resources Limited,180556,"1,001.22", Information Management Services,Large,Programme Expenditure,,
UK Statistics Authority,Office for National Statistics,02/04/2020,Exp - Purchase Of Goods/Services - Contractors,Commercial Services,Parity Resources Limited,180556,"6,087.60", Information Management Services,Large,Programme Expenditure,,
UK Statistics Authority,Office for National Statistics,02/04/2020,Exp - Short-Term Contract & Agency Staff - Full Cost,Ask Business Services,Parity Resources Limited,180556,719.72, Information Management Services,Large,Programme Expenditure,,
UK Statistics Authority,Office for National Statistics,02/04/2020,Exp - Short-Term Contract & Agency Staff - Full Cost,Recruitment ,Parity Resources Limited,180556,943.44, Information Management Services,Large,Programme Expenditure,,
UK Statistics Authority,Office for National Statistics,02/04/2020,Exp - Short-Term Contract & Agency Staff - Full Cost,Recruitment ,Parity Resources Limited,180556,"4,952.82", Information Management Services,Large,Programme Expenditure,,
UK Statistics Authority,Office for National Statistics,02/04/2020,Exp - Purchase Of Goods/Services - Contractors,Digital Delivery,Parity Resources Limited,180556,"14,377.56", Information Management Services,Large,Programme Expenditure,,
UK Statistics Authority,Office for National Statistics,02/04/2020,Other Goods And Services,Interviewer Management TU,Parity Resources Limited,180556,519.37, Information Management Services,Large,Programme Expenditure,,
UK Statistics Authority,Office for National Statistics,02/04/2020,Exp - Short-Term Contract & Agency Staff - Full Cost,Social Survey Transformation Titchfield,Parity Resources Limited,180556,"7,277.60", Information Management Services,Large,Programme Expenditure,,
UK Statistics Authority,Office for National Statistics,02/04/2020,Exp - Short-Term Contract & Agency Staff - Full Cost,Labour Market,Parity Resources Limited,180556,732.6, Information Management Services,Large,Programme Expenditure,,
UK Statistics Authority,Office for National Statistics,06/04/2020,Other Goods and Services,Census CCS Data Collection,Adecco UK Limited,180674,"502,172.40", Census People Services ,SME,Programme Expenditure,,
UK Statistics Authority,Office for National Statistics,06/04/2020,Exp - Purchase Of Goods/Services - Contractors,Testing,Methods Business & Digital Technology Ltd,180675,"27,750.00", Information Management Services,Large,Programme Expenditure,,
UK Statistics Authority,Office for National Statistics,06/04/2020,Exp - Purchase Of Goods/Services - IT Contractual Services,DST Reapportioning,Methods Business & Digital Technology Ltd,180675,"200,384.00", Information Manangement Services,Large,Programme Expenditure,,
UK Statistics Authority,Office for National Statistics,07/04/2020,Marketing & Media,Social Survey Transformation Newport,Banner Group Ltd,180730,"21,840.00",Design Services Field Uniforms,SME,Programme Expenditure,,
UK Statistics Authority,Office for National Statistics,07/04/2020,Marketing & Media,Social Surveys Division,Banner Group Ltd,180730,"14,880.00",Field Uniforms,SME,Programme Expenditure,,
UK Statistics Authority,Office for National Statistics,07/04/2020,Exp - Purchase Of Goods/Services - Contractors,Testing,Certes Computing Ltd,180735,"9,735.60", Information Management Services,SME,Programme Expenditure,,
UK Statistics Authority,Office for National Statistics,07/04/2020,Exp - Purchase Of Goods/Services - Contractors,Security Advisory,Certes Computing Ltd,180735,"17,293.61", Information Management Services,SME,Programme Expenditure,,
UK Statistics Authority,Office for National Statistics,07/04/2020,Exp - Purchase Of Goods/Services - Contractors,Strategy And Architecture,Certes Computing Ltd,180735,"16,652.40", Information Management Services,SME,Programme Expenditure,,
UK Statistics Authority,Office for National Statistics,07/04/2020,Exp - Purchase Of Goods/Services - Contractors,Tech Delivery Legacy Sp,Certes Computing Ltd,180735,"38,737.56", Information Management Services,SME,Programme Expenditure,,
UK Statistics Authority,Office for National Statistics,07/04/2020,Exp - Purchase Of Goods/Services - Contractors,IT Applications,Certes Computing Ltd,180735,"14,091.12", Information Management Services,SME,Programme Expenditure,,
UK Statistics Authority,Office for National Statistics,07/04/2020,Exp - Purchase Of Goods/Services - Contractors,Digital Delivery,Certes Computing Ltd,180735,"7,045.32", Information Management Services,SME,Programme Expenditure,,
UK Statistics Authority,Office for National Statistics,07/04/2020,Exp - Purchase Of Goods/Services - Contractors,Digital Delivery,Certes Computing Ltd,180735,"13,914.98", Information Management Services,SME,Programme Expenditure,,
UK Statistics Authority,Office for National Statistics,07/04/2020,Exp - Short-Term Contract & Agency Staff - Full Cost,Stakeholder Engagement And Comms,LA International,180736,"1,657.01", Information Management Services,SME,Programme Expenditure,,
UK Statistics Authority,Office for National Statistics,07/04/2020,Exp - Purchase Of Goods/Services - Contractors,Testing,LA International,180736,"12,918.42", Information Management Services,SME,Programme Expenditure,,
UK Statistics Authority,Office for National Statistics,07/04/2020,Exp - Purchase Of Goods/Services - Contractors,Programme Delivery,LA International,180736,"3,366.90", Information Management Services,SME,Programme Expenditure,,
UK Statistics Authority,Office for National Statistics,07/04/2020,Exp - Purchase Of Goods/Services - Contractors,Data Architecture,LA International,180736,"3,524.22", Information Management Services,SME,Programme Expenditure,,
UK Statistics Authority,Office for National Statistics,07/04/2020,Exp - Purchase Of Goods/Services - Contractors,Data Architecture,LA International,180736,"3,524.22", Information Management Services,SME,Programme Expenditure,,
UK Statistics Authority,Office for National Statistics,07/04/2020,Exp - Purchase Of Goods/Services - Contractors,Data Architecture,LA International,180736,"3,588.30", Information Management Services,SME,Programme Expenditure,,
UK Statistics Authority,Office for National Statistics,07/04/2020,Exp - Purchase Of Goods/Services - Contractors,Tech Delivery SRS,LA International,180736,"3,588.30", Information Management Services,SME,Programme Expenditure,,
UK Statistics Authority,Office for National Statistics,07/04/2020,Exp - Purchase Of Goods/Services - Contractors,Tech Delivery Legacy Sp,LA International,180736,"3,588.30", Information Management Services,SME,Programme Expenditure,,
UK Statistics Authority,Office for National Statistics,07/04/2020,Exp - Purchase Of Goods/Services - Contractors,IT Applications,LA International,180736,"8,983.86", Information Management Services,SME,Programme Expenditure,,
UK Statistics Authority,Office for National Statistics,07/04/2020,Exp - Purchase Of Goods/Services - Contractors,Digital Delivery,LA International,180736,"4,485.42", Information Management Services,SME,Programme Expenditure,,
UK Statistics Authority,Office for National Statistics,07/04/2020,Exp - Purchase Of Goods/Services - Contractors,Social Survey Transformation Titchfield,LA International,180736,"2,883.49", Information Management Services,SME,Programme Expenditure,,
UK Statistics Authority,Office for National Statistics,07/04/2020,Training & Development,Productivity Research And Professional Development,FranklinCovey Europe Ltd,180745,"39,240.00", Senior Leadership Training,Large,Programme Expenditure,,
UK Statistics Authority,Office for National Statistics,08/04/2020,Accommodation & Building Management,Policy Secretariat,Gresham Office Furniture Limited,180753,"39,495.60", Smart Furniture Titchfield,SME,Programme Expenditure,,
UK Statistics Authority,Office for National Statistics,08/04/2020,Furniture Costing >5K Fsms,Property Newport,Gresham Office Furniture Limited,180753,"39,272.34", Smart Furniture Newport,SME,Programme Expenditure,,
UK Statistics Authority,Office for National Statistics,08/04/2020,Furniture Costing <5K Fsms,Interviewer Management FiF,Gresham Office Furniture Limited,180753,248.16, Smart Furniture Titchfield,SME,Programme Expenditure,,
UK Statistics Authority,Office for National Statistics,08/04/2020,Exp - Purchase Of Goods/Services - Contractors,Business Architecture,La Fosse Associates Limited,180761,"37,560.00", Information Management Services,SME,Programme Expenditure,,
UK Statistics Authority,Office for National Statistics,08/04/2020,Exp - Purchase Of Goods/Services - Contractors,Business Architecture,La Fosse Associates Limited,180761,"48,300.00", Information Management Services,SME,Programme Expenditure,,
UK Statistics Authority,Office for National Statistics,08/04/2020,Exp - Purchase Of Goods/Services - Contractors,Business Architecture,La Fosse Associates Limited,180761,"27,600.00", Information Management Services,SME,Programme Expenditure,,
UK Statistics Authority,Office for National Statistics,08/04/2020,Exp - Purchase Of Goods/Services - Contractors,Programme Delivery,La Fosse Associates Limited,180761,"19,080.00", Information Management Services,SME,Programme Expenditure,,
UK Statistics Authority,Office for National Statistics,08/04/2020,Other Goods And Services,Beyond 2021 Research And Design,The Sensible Code Company,180764,"423,291.58", Information Management Services,SME,Programme Expenditure,,
UK Statistics Authority,Office for National Statistics,08/04/2020,Exp - Purchase Of Goods/Services - IT Contractual Services,Tech Delivery Data As A Platform,Kainos,180766,"194,919.94", Information Management Services,Large,Programme Expenditure,,
UK Statistics Authority,Office for National Statistics,08/04/2020,Hosting,Tech Delivery Data As A Platform,Kainos,180766,"50,741.30", Cloud Services,Large,Programme Expenditure,,
UK Statistics Authority,Office for National Statistics,08/04/2020,Exp - Purchase Of Goods/Services - Contractor Travel,Tech Delivery Data As A Platform,Kainos,180766,"16,217.66", Information Management Services,Large,Programme Expenditure,,
UK Statistics Authority,Office for National Statistics,08/04/2020,Other Goods And Services,Recruitment ,Linkedin,180775,"68,917.20", Information Management Services,Large,Programme Expenditure,,
UK Statistics Authority,Office for National Statistics,09/04/2020,FM Contract Payments,Mitie Payments,Vinci Construction UK Limited,180852,"324,759.28",Facilities Mangement Services,Large,Programme Expenditure,,
UK Statistics Authority,Office for National Statistics,09/04/2020,Stationery,Lodgecard,Royal Bank of Scotland,180863,"6,243.62", Multiple Procurement Card Stationery Purchases  ,Large,Programme Expenditure,,
UK Statistics Authority,Office for National Statistics,09/04/2020,Other Goods And Services,GPC,Royal Bank of Scotland,180863,"78,682.98", Multiple Procurement Card Stationery Purchases  ,Large,Programme Expenditure,,
UK Statistics Authority,Office for National Statistics,09/04/2020,Exp - Purchase Of Goods/Services - Contractors,Stakeholder Engagement And Comms,Parity Resources Limited,180869,"3,143.52", Information Management Services,Large,Programme Expenditure,,
UK Statistics Authority,Office for National Statistics,09/04/2020,Exp - Short-Term Contract & Agency Staff - Full Cost,Beyond 2021 Research And Design,Parity Resources Limited,180869,"3,709.62", Information Management Services,Large,Programme Expenditure,,
UK Statistics Authority,Office for National Statistics,09/04/2020,Exp - Short-Term Contract & Agency Staff - Full Cost,Productivity Research And Professional Development,Parity Resources Limited,180869,"1,001.22", Information Management Services,Large,Programme Expenditure,,
UK Statistics Authority,Office for National Statistics,09/04/2020,Exp - Purchase Of Goods/Services - Contractors,Productivity Research And Professional Development,Parity Resources Limited,180869,"14,184.00", Information Management Services,Large,Programme Expenditure,,
UK Statistics Authority,Office for National Statistics,09/04/2020,Exp - Short-Term Contract & Agency Staff - Full Cost,Strategy And Engagement,Parity Resources Limited,180869,"1,984.68", Information Management Services,Large,Programme Expenditure,,
UK Statistics Authority,Office for National Statistics,09/04/2020,Exp - Purchase Of Goods/Services - Contractors,Analysis Microdata And Engagement,Parity Resources Limited,180869,216, Information Management Services,Large,Programme Expenditure,,
UK Statistics Authority,Office for National Statistics,09/04/2020,Exp - Purchase Of Goods/Services - Contractors,Security Advisory,Parity Resources Limited,180869,"12,200.83", Information Management Services,Large,Programme Expenditure,,
UK Statistics Authority,Office for National Statistics,09/04/2020,Exp - Purchase Of Goods/Services - Contractors,IT Applications,Parity Resources Limited,180869,"2,307.00", Information Management Services,Large,Programme Expenditure,,
UK Statistics Authority,Office for National Statistics,09/04/2020,Exp - Short-Term Contract & Agency Staff - Full Cost,Digital Delivery,Parity Resources Limited,180869,637.2, Information Management Services,Large,Programme Expenditure,,
UK Statistics Authority,Office for National Statistics,09/04/2020,Exp - Purchase Of Goods/Services - Contractors,Digital Delivery,Parity Resources Limited,180869,"14,353.92", Information Management Services,Large,Programme Expenditure,,
UK Statistics Authority,Office for National Statistics,09/04/2020,Exp - Purchase Of Goods/Services - IT Contractual Services,Digital Delivery,Parity Resources Limited,180869,"11,246.04", Information Management Services,Large,Programme Expenditure,,
UK Statistics Authority,Office for National Statistics,09/04/2020,Exp - Short-Term Contract & Agency Staff - Full Cost,Labour Market,Parity Resources Limited,180869,732.6, Information Management Services,Large,Programme Expenditure,,
UK Statistics Authority,Office for National Statistics,09/04/2020,Exp - Short-Term Contract & Agency Staff - Full Cost,Labour Market,Parity Resources Limited,180869,732.6, Information Management Services,Large,Programme Expenditure,,
UK Statistics Authority,Office for National Statistics,14/04/2020,Exp - Purchase Of Goods/Services - IT Contractual Services,DST Reapportioning,Empiric Solutions Limited,180900,"30,810.00", Information Management Services,Large,Programme Expenditure,,
UK Statistics Authority,Office for National Statistics,14/04/2020,Exp - Purchase Of Goods/Services - Contractors,Programme Delivery,LA International,180906,"3,366.90", Information Management Services,SME,Programme Expenditure,,
UK Statistics Authority,Office for National Statistics,14/04/2020,Exp - Purchase Of Goods/Services - Contractors,Security Advisory,LA International,180906,"9,996.01", Information Management Services,SME,Programme Expenditure,,
UK Statistics Authority,Office for National Statistics,14/04/2020,Exp - Purchase Of Goods/Services - Contractors,Tech Delivery Legacy Sp,LA International,180906,"1,435.32", Information Management Services,SME,Programme Expenditure,,
UK Statistics Authority,Office for National Statistics,14/04/2020,Exp - Purchase Of Goods/Services - Contractors,Tech Delivery Legacy Sp,LA International,180906,"2,152.98", Information Management Services,SME,Programme Expenditure,,
UK Statistics Authority,Office for National Statistics,14/04/2020,Exp - Purchase Of Goods/Services - Contractors,IT Applications,LA International,180906,"3,139.80", Information Management Services,SME,Programme Expenditure,,
UK Statistics Authority,Office for National Statistics,14/04/2020,Exp - Purchase Of Goods/Services - Contractors,Digital Delivery,LA International,180906,"10,764.90", Information Management Services,SME,Programme Expenditure,,
UK Statistics Authority,Office for National Statistics,14/04/2020,Surveys,International Trade And Transactions,Bureau Van Dijk Electronic Publishing,180912,"57,600.00", Statistical Services,SME,Programme Expenditure,,
UK Statistics Authority,Office for National Statistics,14/04/2020,Exp - Purchase Of Goods/Services - Contractors,Business Architecture,Parity Resources Limited,180916,"8,971.20", Information Management Services,Large,Programme Expenditure,,
UK Statistics Authority,Office for National Statistics,14/04/2020,Exp - Purchase Of Goods/Services - Contractors,Testing,Parity Resources Limited,180916,"14,738.40", Information Management Services,Large,Programme Expenditure,,
UK Statistics Authority,Office for National Statistics,14/04/2020,Exp - Purchase Of Goods/Services - Contractors,Programme Other,Parity Resources Limited,180916,12.59, Information Management Services,Large,Programme Expenditure,,
UK Statistics Authority,Office for National Statistics,14/04/2020,Exp - Purchase Of Goods/Services - Contractors,Programme Delivery,Parity Resources Limited,180916,"23,007.60", Information Management Services,Large,Programme Expenditure,,
UK Statistics Authority,Office for National Statistics,14/04/2020,Exp - Purchase Of Goods/Services - Contractors,Programme Delivery,Parity Resources Limited,180916,"28,012.33", Information Management Services,Large,Programme Expenditure,,
UK Statistics Authority,Office for National Statistics,14/04/2020,Exp - Purchase Of Goods/Services - Contractors,Productivity Research And Professional Development,Parity Resources Limited,180916,185.39, Information Management Services,Large,Programme Expenditure,,
UK Statistics Authority,Office for National Statistics,14/04/2020,Exp - Purchase Of Goods/Services - Contractors,Analysis Microdata And Engagement,Parity Resources Limited,180916,"5,083.20", Information Management Services,Large,Programme Expenditure,,
UK Statistics Authority,Office for National Statistics,14/04/2020,Exp - Purchase Of Goods/Services - Contractors,Finance,Parity Resources Limited,180916,"6,120.00", Information Management Services,Large,Programme Expenditure,,
UK Statistics Authority,Office for National Statistics,14/04/2020,Exp - Purchase Of Goods/Services - Contractors,HR Business Partners,Parity Resources Limited,180916,"12,096.00", Information Management Services,Large,Programme Expenditure,,
UK Statistics Authority,Office for National Statistics,14/04/2020,Exp - Short-Term Contract & Agency Staff - Full Cost,Ask Business Services,Parity Resources Limited,180916,930.6, Information Management Services,Large,Programme Expenditure,,
UK Statistics Authority,Office for National Statistics,14/04/2020,Exp - Purchase Of Goods/Services - Contractors,Security Advisory,Parity Resources Limited,180916,"15,379.20", Information Management Services,Large,Programme Expenditure,,
UK Statistics Authority,Office for National Statistics,14/04/2020,Exp - Purchase Of Goods/Services - Contractors,Tech Delivery Legacy Sp,Parity Resources Limited,180916,"11,534.40", Information Management Services,Large,Programme Expenditure,,
UK Statistics Authority,Office for National Statistics,14/04/2020,Exp - Purchase Of Goods/Services - Contractors,IT Applications,Parity Resources Limited,180916,"10,893.60", Information Management Services,Large,Programme Expenditure,,
UK Statistics Authority,Office for National Statistics,14/04/2020,Exp - Purchase Of Goods/Services - Contractors,Digital Delivery,Parity Resources Limited,180916,"14,353.92", Information Management Services,Large,Programme Expenditure,,
UK Statistics Authority,Office for National Statistics,14/04/2020,Exp - Purchase Of Goods/Services - Contractors,Interviewer Support,Parity Resources Limited,180916,"9,612.00", Information Management Services,Large,Programme Expenditure,,
UK Statistics Authority,Office for National Statistics,14/04/2020,Exp - Short-Term Contract & Agency Staff - Full Cost,Social Survey Transformation Titchfield,Parity Resources Limited,180916,"6,808.30", Information Management Services,Large,Programme Expenditure,,
UK Statistics Authority,Office for National Statistics,15/04/2020,Major Works Over 25K,Census CCS Data Collection,Vinci Construction UK Limited,180957,"21,322.80", Major Works Titchfield,Large,Programme Expenditure,,
UK Statistics Authority,Office for National Statistics,15/04/2020,Capital Major Works >25K,Property Services,Vinci Construction UK Limited,180957,"4,725.60", Major Works Newport,Large,Programme Expenditure,,
UK Statistics Authority,Office for National Statistics,15/04/2020,Major Works Over 25K,Property Newport,Vinci Construction UK Limited,180957,"27,060.00", Major Works Newport,Large,Programme Expenditure,,
UK Statistics Authority,Office for National Statistics,15/04/2020,Major Works Over 25K,Property Titchfield,Vinci Construction UK Limited,180957,"5,679.60", Major Works Titchfield,Large,Programme Expenditure,,
UK Statistics Authority,Office for National Statistics,15/04/2020,Exp - Short-Term Contract & Agency Staff - Full Cost,Migration Statistics,Concept Information Technology Ltd T/A Concept Resourcing,180958,"2,014.60", Information Management Services,Large,Programme Expenditure,,
UK Statistics Authority,Office for National Statistics,15/04/2020,Exp - Purchase Of Goods/Services - Contractors,Tech Delivery Legacy Sp,Concept Information Technology Ltd T/A Concept Resourcing,180958,"12,000.00", Information Management Services,Large,Programme Expenditure,,
UK Statistics Authority,Office for National Statistics,15/04/2020,Exp - Purchase Of Goods/Services - Contractors,Tech Delivery Data As A Platform,Concept Information Technology Ltd T/A Concept Resourcing,180958,"11,379.94", Information Management Services,Large,Programme Expenditure,,
UK Statistics Authority,Office for National Statistics,15/04/2020,Exp - Purchase Of Goods/Services - Contractors,Tech Delivery Data As A Platform,Concept Information Technology Ltd T/A Concept Resourcing,180958,"3,347.04", Information Management Services,Large,Programme Expenditure,,
UK Statistics Authority,Office for National Statistics,15/04/2020,Exp - Purchase Of Goods/Services - Contractors,Testing,LA International,180962,"12,918.42", Information Management Services,SME,Programme Expenditure,,
UK Statistics Authority,Office for National Statistics,15/04/2020,Exp - Purchase Of Goods/Services - Contractors,Security Advisory,LA International,180962,"3,844.62", Information Management Services,SME,Programme Expenditure,,
UK Statistics Authority,Office for National Statistics,15/04/2020,Exp - Purchase Of Goods/Services - Contractors,Data Architecture,LA International,180962,"3,524.22", Information Management Services,SME,Programme Expenditure,,
UK Statistics Authority,Office for National Statistics,15/04/2020,Exp - Purchase Of Goods/Services - Contractors,Data Architecture,LA International,180962,"3,524.22", Information Management Services,SME,Programme Expenditure,,
UK Statistics Authority,Office for National Statistics,15/04/2020,Exp - Purchase Of Goods/Services - Contractors,Data Architecture,LA International,180962,"3,588.30", Information Management Services,SME,Programme Expenditure,,
UK Statistics Authority,Office for National Statistics,15/04/2020,Exp - Purchase Of Goods/Services - Contractors,IT Applications,LA International,180962,"8,970.84", Information Management Services,SME,Programme Expenditure,,
UK Statistics Authority,Office for National Statistics,15/04/2020,Exp - Purchase Of Goods/Services - Contractors,Digital Delivery,LA International,180962,"17,941.50", Information Management Services,SME,Programme Expenditure,,
UK Statistics Authority,Office for National Statistics,15/04/2020,Other Goods and Services,Census CCS Data Collection,Granby Marketing Services Ltd,180967,"25,770.24", Census Information Management Services,Large,Programme Expenditure,,
UK Statistics Authority,Office for National Statistics,15/04/2020,Other Goods and Services,Data Collection Service,Good Things Foundation,180969,"142,224.94", Information Management Services,SME,Programme Expenditure,,
UK Statistics Authority,Office for National Statistics,15/04/2020,Telecoms,Tech Delivery Next Gen IT And Infrastructure,Freedom Communications (UK) Ltd,180970,"47,252.72", Telephony Charges,Large,Programme Expenditure,,
UK Statistics Authority,Office for National Statistics,15/04/2020,Exp - Purchase Of Goods/Services - Contractors,IT Applications,Parity Resources Limited,180972,"14,353.92", Information Management Services,Large,Programme Expenditure,,
UK Statistics Authority,Office for National Statistics,15/04/2020,Exp - Purchase Of Goods/Services - Contractors,Digital Delivery,Parity Resources Limited,180972,"14,353.92", Information Management Services,Large,Programme Expenditure,,
UK Statistics Authority,Office for National Statistics,15/04/2020,Exp - Purchase Of Goods/Services - Contractors,Digital Delivery,Parity Resources Limited,180972,"9,804.24", Information Management Services,Large,Programme Expenditure,,
UK Statistics Authority,Office for National Statistics,15/04/2020,Exp - Purchase Of Goods/Services - IT Contractual Services,IT Applications,Diegesis Limited,180973,"132,740.52", Information Management Services,SME,Programme Expenditure,,
UK Statistics Authority,Office for National Statistics,16/04/2020,Exp - Purchase Of Goods/Services - Contractors,Testing,Certes Computing Ltd,181043,"10,248.00", Information Management Services,SME,Programme Expenditure,,
UK Statistics Authority,Office for National Statistics,16/04/2020,Exp - Purchase Of Goods/Services - Contractors,Programme Delivery,Certes Computing Ltd,181043,"12,810.00", Information Management Services,SME,Programme Expenditure,,
UK Statistics Authority,Office for National Statistics,16/04/2020,Exp - Purchase Of Goods/Services - Contractors,HR Business Partners,Certes Computing Ltd,181043,"11,272.80", Information Management Services,SME,Programme Expenditure,,
UK Statistics Authority,Office for National Statistics,16/04/2020,Exp - Purchase Of Goods/Services - Contractors,Security Advisory,Certes Computing Ltd,181043,"11,032.69", Information Management Services,SME,Programme Expenditure,,
UK Statistics Authority,Office for National Statistics,16/04/2020,Exp - Purchase Of Goods/Services - Contractors,Data Architecture,Certes Computing Ltd,181043,"14,397.84", Information Management Services,SME,Programme Expenditure,,
UK Statistics Authority,Office for National Statistics,16/04/2020,Exp - Purchase Of Goods/Services - Contractors,Digital Delivery,Certes Computing Ltd,181043,"31,767.60", Information Management Services,SME,Programme Expenditure,,
UK Statistics Authority,Office for National Statistics,16/04/2020,Exp - Purchase Of Goods/Services - Contractors,Digital Delivery,Certes Computing Ltd,181043,"13,386.56", Information Management Services,SME,Programme Expenditure,,
UK Statistics Authority,Office for National Statistics,16/04/2020,Exp - Purchase Of Goods/Services - Contractors,Digital Delivery,Certes Computing Ltd,181043,"12,195.12", Information Management Services,SME,Programme Expenditure,,
UK Statistics Authority,Office for National Statistics,16/04/2020,Exp - Purchase Of Goods/Services - Contractors,Portfolio Delivery,Malikshaw Interim & Executive,181047,"13,488.80", Information Management Services,SME,Programme Expenditure,,
UK Statistics Authority,Office for National Statistics,16/04/2020,Exp - Purchase Of Goods/Services - Contractors,Commercial Services,Malikshaw Interim & Executive,181047,"9,360.00", Information Management Services,SME,Programme Expenditure,,
UK Statistics Authority,Office for National Statistics,16/04/2020,Exp - Purchase Of Goods/Services - Contractors,Data Science Campus,Malikshaw Interim & Executive,181047,"18,000.00", Information Management Services,SME,Programme Expenditure,,
UK Statistics Authority,Office for National Statistics,16/04/2020,Exp - Purchase Of Goods/Services - Contractors,Business Statistics Transformation,Malikshaw Interim & Executive,181047,"11,836.37", Information Management Services,SME,Programme Expenditure,,
UK Statistics Authority,Office for National Statistics,16/04/2020,Surveys,Crime Statistics,Kantar UK Ltd,181048,"642,357.38", Statistical Services,Large,Programme Expenditure,,
UK Statistics Authority,Office for National Statistics,16/04/2020,Surveys,Prices Division,Kantar UK Ltd,181048,"8,300.00", Statistical Services,Large,Programme Expenditure,,
UK Statistics Authority,Office for National Statistics,17/04/2020,Surveys,Prices Division,Kantar UK Ltd,181058,"203,497.00", Statistical Services,Large,Programme Expenditure,,
UK Statistics Authority,Office for National Statistics,17/04/2020,Exp - Purchase Of Goods/Services - IT Contractual Services,Digital Delivery,Worth Internet Systems,181059,"72,225.00", Information Manangement Services,SME,Programme Expenditure,,
UK Statistics Authority,Office for National Statistics,17/04/2020,Accommodation & Building Management,Interview Management IPS,Heathrow Airport,181070,"29,238.64", Rental Charge for ONS presence at Heathrow Airport,Large,Programme Expenditure,,
UK Statistics Authority,Office for National Statistics,17/04/2020,Exp - Purchase Of Goods/Services - IT Contractual Services,Strategy And Architecture,Medley Business Solutions Ltd,181072,"52,552.49", Information Management Services,Large,Programme Expenditure,,
UK Statistics Authority,Office for National Statistics,17/04/2020,Exp - Purchase Of Goods/Services - Contractor Travel,Strategy And Architecture,Medley Business Solutions Ltd,181072,775.12, Information Management Services,Large,Programme Expenditure,,
UK Statistics Authority,Office for National Statistics,17/04/2020,Exp - Purchase Of Goods/Services - Contractors,Tech Delivery Data As A Platform,LA International,181073,"6,407.76", Information Management Services,SME,Programme Expenditure,,
UK Statistics Authority,Office for National Statistics,17/04/2020,Exp - Purchase Of Goods/Services - Contractors,IT Applications,LA International,181073,"17,044.47", Information Management Services,SME,Programme Expenditure,,
UK Statistics Authority,Office for National Statistics,17/04/2020,Exp - Purchase Of Goods/Services - Contractors,Digital Delivery,LA International,181073,"15,378.48", Information Management Services,SME,Programme Expenditure,,
UK Statistics Authority,Office for National Statistics,17/04/2020,Exp - Purchase Of Goods/Services - Contractors,Digital Delivery,LA International,181073,"3,203.88", Information Management Services,SME,Programme Expenditure,,
UK Statistics Authority,Office for National Statistics,20/04/2020,End User Software And Hardware,IT Operations,Bytes Software Services Ltd,181198,"172,258.80", Software Licenses,Large,Programme Expenditure,,
UK Statistics Authority,Office for National Statistics,20/04/2020,Exp - Purchase Of Goods/Services - IT Contractual Services,Stakeholder Engagement And Comms,Granicus LLC,181199,"45,228.00", Information Manangement Services,Large,Programme Expenditure,,
UK Statistics Authority,Office for National Statistics,20/04/2020,Exp - Purchase Of Goods/Services - IT Contractual Services,Tech Delivery Next Gen IT And Infrastructure,Diegesis Limited,181202,"40,708.46", Information Management Services,SME,Programme Expenditure,,
UK Statistics Authority,Office for National Statistics,21/04/2020,Exp - Purchase Of Goods/Services - IT Contractual Services,Digital Publishing,E Synergy Solutions,181208,"13,200.00", Information Management Services,SME,Programme Expenditure,,
UK Statistics Authority,Office for National Statistics,21/04/2020,Exp - Purchase Of Goods/Services - IT Contractual Services,DST Reapportioning,E Synergy Solutions,181208,"52,290.00", Information Management Services,SME,Programme Expenditure,,
UK Statistics Authority,Office for National Statistics,21/04/2020,Exp - Purchase Of Goods/Services - IT Contractual Services,Tech Delivery Legacy Sp,E Synergy Solutions,181208,"86,364.00", Information Management Services,SME,Programme Expenditure,,
UK Statistics Authority,Office for National Statistics,21/04/2020,Exp - Purchase Of Goods/Services - IT Contractual Services,Tech Delivery Next Gen IT And Infrastructure,E Synergy Solutions,181208,"29,370.05", Information Management Services,SME,Programme Expenditure,,
UK Statistics Authority,Office for National Statistics,21/04/2020,Exp - Purchase Of Goods/Services - IT Contractual Services,IT Operations,E Synergy Solutions,181208,"140,052.00", Information Management Services,SME,Programme Expenditure,,
UK Statistics Authority,Office for National Statistics,21/04/2020,Exp - Purchase Of Goods/Services - Contractors,Strategy And Architecture,Certes Computing Ltd,181211,"14,603.40", Information Management Services,SME,Programme Expenditure,,
UK Statistics Authority,Office for National Statistics,21/04/2020,Exp - Purchase Of Goods/Services - Contractors,Tech Delivery Legacy Sp,Certes Computing Ltd,181211,"18,723.20", Information Management Services,SME,Programme Expenditure,,
UK Statistics Authority,Office for National Statistics,21/04/2020,Exp - Purchase Of Goods/Services - Contractors,IT Applications,Certes Computing Ltd,181211,"2,434.08", Information Management Services,SME,Programme Expenditure,,
UK Statistics Authority,Office for National Statistics,21/04/2020,Exp - Purchase Of Goods/Services - Contractors,Digital Delivery,Certes Computing Ltd,181211,"5,040.00", Information Management Services,SME,Programme Expenditure,,
UK Statistics Authority,Office for National Statistics,21/04/2020,Exp - Purchase Of Goods/Services - Contractors,Digital Delivery,Certes Computing Ltd,181211,"24,837.52", Information Management Services,SME,Programme Expenditure,,
UK Statistics Authority,Office for National Statistics,21/04/2020,Exp - Purchase Of Goods/Services - Contractors,Digital Delivery,Certes Computing Ltd,181211,"10,247.70", Information Management Services,SME,Programme Expenditure,,
UK Statistics Authority,Office for National Statistics,21/04/2020,Exp - Purchase Of Goods/Services - Contractors,Digital Delivery,Certes Computing Ltd,181211,"1,409.06", Information Management Services,SME,Programme Expenditure,,
UK Statistics Authority,Office for National Statistics,21/04/2020,Accommodation & Building Management,Interview Management IPS,London Borough of Hillingdon,181214,"28,717.45", Rental Charge for ONS presence at Heathrow Airport,Large,Programme Expenditure,,Karla to confirm what his is 
UK Statistics Authority,Office for National Statistics,21/04/2020,Other Goods and Services,Data Collection Service,Serco Ltd,181217,"31,738.86", Information Management Services,Large,Programme Expenditure,,
UK Statistics Authority,Office for National Statistics,21/04/2020,Hosting,IT Operations,Amazon Web Services Inc,181218,"73,829.44", Cloud Services,Large,Programme Expenditure,,
UK Statistics Authority,Office for National Statistics,22/04/2020,"ICT Outsourcing, Maintenance And Support",IT Operations,Oracle Corporation UK Ltd,181222,"1,249,505.60", Licenses and Support,Large,Programme Expenditure,,
UK Statistics Authority,Office for National Statistics,22/04/2020,End User Software And Hardware,IT Operations,Sas Software Ltd,181223,"668,943.60", Software Licenses,Large,Programme Expenditure,,
UK Statistics Authority,Office for National Statistics,22/04/2020,"ICT Outsourcing, Maintenance And Support",IT Operations,Automated Intelligence Ltd,181224,"50,688.00", Software Maintenance and Support,SME,Programme Expenditure,,
UK Statistics Authority,Office for National Statistics,22/04/2020,Telecoms,IT Operations,Bt Global Services,181229,"32,175.38", Telephony Charges,Large,Programme Expenditure,,
UK Statistics Authority,Office for National Statistics,22/04/2020,Exp - Purchase Of Goods/Services - Contractors,Testing,LA International,181232,"4,183.37", Information Management Services,SME,Programme Expenditure,,
UK Statistics Authority,Office for National Statistics,22/04/2020,Exp - Purchase Of Goods/Services - Contractors,Sustainability And Inequalities,LA International,181232,"4,419.66", Information Management Services,SME,Programme Expenditure,,
UK Statistics Authority,Office for National Statistics,22/04/2020,Exp - Purchase Of Goods/Services - Contractors,Data Architecture,LA International,181232,"2,819.38", Information Management Services,SME,Programme Expenditure,,
UK Statistics Authority,Office for National Statistics,22/04/2020,Exp - Purchase Of Goods/Services - Contractors,Tech Delivery Legacy Sp,LA International,181232,"16,916.26", Information Management Services,SME,Programme Expenditure,,
UK Statistics Authority,Office for National Statistics,22/04/2020,Exp - Purchase Of Goods/Services - Contractors,Tech Delivery Data As A Platform,LA International,181232,"14,353.20", Information Management Services,SME,Programme Expenditure,,
UK Statistics Authority,Office for National Statistics,22/04/2020,Exp - Purchase Of Goods/Services - Contractors,IT Applications,LA International,181232,"2,896.50", Information Management Services,SME,Programme Expenditure,,
UK Statistics Authority,Office for National Statistics,22/04/2020,Exp - Purchase Of Goods/Services - Contractors,Digital Delivery,LA International,181232,"2,691.25", Information Management Services,SME,Programme Expenditure,,
UK Statistics Authority,Office for National Statistics,22/04/2020,Exp - Purchase Of Goods/Services - Contractors,Digital Delivery,LA International,181232,"1,794.17", Information Management Services,SME,Programme Expenditure,,
UK Statistics Authority,Office for National Statistics,22/04/2020,End User Software And Hardware,IT Operations,Computacenter (Uk) Limited,181233,"48,715.80", Software Licenses,Large,Programme Expenditure,,
UK Statistics Authority,Office for National Statistics,22/04/2020,Exp - Purchase Of Goods/Services - Contractors,Digital Publishing,Methods Business & Digital Technology Ltd,181236,"39,810.00", Information Manangement Services,Large,Programme Expenditure,,
UK Statistics Authority,Office for National Statistics,23/04/2020,Exp - Purchase Of Goods/Services - IT Contractual Services,Data Science Campus,E Synergy Solutions,181313,"36,810.00", Information Management Services,SME,Programme Expenditure,,
UK Statistics Authority,Office for National Statistics,23/04/2020,Exp - Purchase Of Goods/Services - Contractor Travel,Data Science Campus,E Synergy Solutions,181313,"4,181.50", Information Management Services,SME,Programme Expenditure,,
UK Statistics Authority,Office for National Statistics,23/04/2020,Exp - Purchase Of Goods/Services - Contractors,Programme Delivery,LA International,181323,"2,693.52", Information Management Services,SME,Programme Expenditure,,
UK Statistics Authority,Office for National Statistics,23/04/2020,Exp - Purchase Of Goods/Services - Contractors,Sustainability And Inequalities,LA International,181323,"1,894.14", Information Management Services,SME,Programme Expenditure,,
UK Statistics Authority,Office for National Statistics,23/04/2020,Exp - Purchase Of Goods/Services - Contractors,Data Architecture,LA International,181323,"2,870.64", Information Management Services,SME,Programme Expenditure,,
UK Statistics Authority,Office for National Statistics,23/04/2020,Exp - Purchase Of Goods/Services - Contractors,Tech Delivery Legacy Sp,LA International,181323,"2,870.64", Information Management Services,SME,Programme Expenditure,,
UK Statistics Authority,Office for National Statistics,23/04/2020,Exp - Short-Term Contract & Agency Staff - Full Cost,Tech Delivery Next Gen IT And Infrastructure,LA International,181323,"2,248.22", Information Management Services,SME,Programme Expenditure,,
UK Statistics Authority,Office for National Statistics,23/04/2020,Exp - Purchase Of Goods/Services - Contractors,IT Applications,LA International,181323,"15,442.63", Information Management Services,SME,Programme Expenditure,,
UK Statistics Authority,Office for National Statistics,23/04/2020,Exp - Purchase Of Goods/Services - Contractors,Digital Delivery,LA International,181323,"5,766.98", Information Management Services,SME,Programme Expenditure,,
UK Statistics Authority,Office for National Statistics,23/04/2020,Exp - Purchase Of Goods/Services - Contractors,Social Survey Transformation Titchfield,LA International,181323,"2,563.10", Information Management Services,SME,Programme Expenditure,,
UK Statistics Authority,Office for National Statistics,23/04/2020,Training & Development,Learning And Capability,Insights Learning and Development Limited,181329,"25,221.60", Discovery Practitioner Training,SME,Programme Expenditure,,
UK Statistics Authority,Office for National Statistics,23/04/2020,"ICT Outsourcing, Maintenance And Support",Tech Delivery Next Gen IT And Infrastructure,Actian Europe Limited,181331,"25,272.00", Licenses and Support,SME,Programme Expenditure,,
UK Statistics Authority,Office for National Statistics,23/04/2020,Exp - Purchase Of Goods/Services - IT Contractual Services,IT Operations,Mitie Security,181332,"90,000.00", Information Manangement Services,Large,Programme Expenditure,,
UK Statistics Authority,Office for National Statistics,23/04/2020,Exp - Short-Term Contract & Agency Staff - Full Cost,International Trade And Transactions,Parity Resources Limited,181336,"7,630.92", Information Management Services,Large,Programme Expenditure,,
UK Statistics Authority,Office for National Statistics,23/04/2020,Exp - Purchase Of Goods/Services - Contractors,International Trade And Transactions,Parity Resources Limited,181336,"15,536.54", Information Management Services,Large,Programme Expenditure,,
UK Statistics Authority,Office for National Statistics,23/04/2020,Exp - Purchase Of Goods/Services - Contractors,International Trade And Transactions,Parity Resources Limited,181336,"1,001.22", Information Management Services,Large,Programme Expenditure,,
UK Statistics Authority,Office for National Statistics,23/04/2020,Exp - Purchase Of Goods/Services - Contractors,International Trade And Transactions,Parity Resources Limited,181336,"21,823.20", Information Management Services,Large,Programme Expenditure,,
UK Statistics Authority,Office for National Statistics,23/04/2020,Exp - Short-Term Contract & Agency Staff - Full Cost,Strategy And Engagement,Parity Resources Limited,181336,"1,001.22", Information Management Services,Large,Programme Expenditure,,
UK Statistics Authority,Office for National Statistics,23/04/2020,Exp - Short-Term Contract & Agency Staff - Full Cost,Recruitment ,Parity Resources Limited,181336,"1,663.20", Information Management Services,Large,Programme Expenditure,,
UK Statistics Authority,Office for National Statistics,23/04/2020,Exp - Short-Term Contract & Agency Staff - Full Cost,ONS And GSS Careers,Parity Resources Limited,181336,628.7, Information Management Services,Large,Programme Expenditure,,
UK Statistics Authority,Office for National Statistics,23/04/2020,Exp - Purchase Of Goods/Services - Contractors,Health Analysis And Life Events,Parity Resources Limited,181336,"4,405.37", Information Management Services,Large,Programme Expenditure,,
UK Statistics Authority,Office for National Statistics,23/04/2020,Exp - Purchase Of Goods/Services - Contractors,IT Applications,Parity Resources Limited,181336,"1,845.60", Information Management Services,Large,Programme Expenditure,,
UK Statistics Authority,Office for National Statistics,23/04/2020,Exp - Short-Term Contract & Agency Staff - Full Cost,Digital Delivery,Parity Resources Limited,181336,552.24, Information Management Services,Large,Programme Expenditure,,
UK Statistics Authority,Office for National Statistics,23/04/2020,Exp - Short-Term Contract & Agency Staff - Full Cost,Public Sector And Households,Parity Resources Limited,181336,811.8, Information Management Services,Large,Programme Expenditure,,
UK Statistics Authority,Office for National Statistics,23/04/2020,Exp - Purchase Of Goods/Services - Contractors,Social Survey Transformation Titchfield,Parity Resources Limited,181336,"10,578.60", Information Management Services,Large,Programme Expenditure,,
UK Statistics Authority,Office for National Statistics,23/04/2020,Exp - Short-Term Contract & Agency Staff - Full Cost,Labour Market,Parity Resources Limited,181336,"1,318.68", Information Management Services,Large,Programme Expenditure,,
UK Statistics Authority,Office for National Statistics,23/04/2020,Exp - Short-Term Contract & Agency Staff - Full Cost,Labour Market,Parity Resources Limited,181336,"1,326.60", Information Management Services,Large,Programme Expenditure,,
UK Statistics Authority,Office for National Statistics,24/04/2020,End User Software And Hardware,IT Operations,CCS MEDIA LTD,181337,"122,646.34", Software Licenses,Large,Programme Expenditure,,
UK Statistics Authority,Office for National Statistics,24/04/2020,Exp - Purchase Of Goods/Services - Contractors,Commercial Services,Parity Resources Limited,181348,"3,043.80", Information Management Services,Large,Programme Expenditure,,
UK Statistics Authority,Office for National Statistics,24/04/2020,Exp - Short-Term Contract & Agency Staff - Full Cost,Ask Business Services,Parity Resources Limited,181348,586.08, Information Management Services,Large,Programme Expenditure,,
UK Statistics Authority,Office for National Statistics,24/04/2020,Exp - Short-Term Contract & Agency Staff - Full Cost,ONS And GSS Careers,Parity Resources Limited,181348,"1,100.23", Information Management Services,Large,Programme Expenditure,,
UK Statistics Authority,Office for National Statistics,24/04/2020,Other Goods And Services,Interviewer Management TU,Parity Resources Limited,181348,544.1, Information Management Services,Large,Programme Expenditure,,
UK Statistics Authority,Office for National Statistics,24/04/2020,Exp - Purchase Of Goods/Services - Contractors,Interviewer Support,Parity Resources Limited,181348,"26,831.28", Information Management Services,Large,Programme Expenditure,,
UK Statistics Authority,Office for National Statistics,24/04/2020,"ICT Outsourcing, Maintenance And Support",Digital Delivery,XMA Limited,181359,"26,728.80", Licenses and Support,Large,Programme Expenditure,,
UK Statistics Authority,Office for National Statistics,24/04/2020,Exp - Purchase Of Goods/Services - Contractors,Tech Delivery Data As A Platform,Talent International,181367,"14,376.00", Information Management Services,SME,Programme Expenditure,,
UK Statistics Authority,Office for National Statistics,24/04/2020,Exp - Purchase Of Goods/Services - Contractors,Tech Delivery Next Gen IT And Infrastructure,Talent International,181367,"10,348.51", Information Management Services,SME,Programme Expenditure,,
UK Statistics Authority,Office for National Statistics,24/04/2020,Exp - Purchase Of Goods/Services - Contractors,Digital Delivery,Talent International,181367,"12,096.00", Information Management Services,SME,Programme Expenditure,,
UK Statistics Authority,Office for National Statistics,27/04/2020,Surveys,Social Surveys Division,Nisra,181490,"126,037.55", Statistical Services,Large,Programme Expenditure,,
UK Statistics Authority,Office for National Statistics,27/04/2020,It (Owned) At Cost - Additions,Data Science Campus,Probrand Ltd,181493,"26,370.96", Computers and Peripherals ,SME,Programme Expenditure,,
UK Statistics Authority,Office for National Statistics,27/04/2020,Training & Development,Data Science Campus,The Alan Turing Institute,181496,"53,644.82", Training ,SME,Programme Expenditure,,
UK Statistics Authority,Office for National Statistics,27/04/2020,"ICT Outsourcing, Maintenance And Support",Tech Delivery SRS,Bloom Procurement Services Ltd,181504,"62,879.75", Licenses and Support,Large,Programme Expenditure,,
UK Statistics Authority,Office for National Statistics,27/04/2020,Exp - Purchase Of Goods/Services - IT Contractual Services,Tech Delivery SRS,Bloom Procurement Services Ltd,181504,"100,484.34", Information Management Services,Large,Programme Expenditure,,
UK Statistics Authority,Office for National Statistics,27/04/2020,End User Software And Hardware,Tech Delivery SRS,Bloom Procurement Services Ltd,181504,"167,476.26", Software Licenses,Large,Programme Expenditure,,
UK Statistics Authority,Office for National Statistics,28/04/2020,Exp - Purchase Of Goods/Services - Contractors,International Trade And Transactions,Mango Solutions,181513,"16,320.00", Information Management Services,SME,Programme Expenditure,,
UK Statistics Authority,Office for National Statistics,28/04/2020,Exp - Purchase Of Goods/Services - Contractors,International Trade And Transactions,Mango Solutions,181513,"41,730.00", Information Management Services,SME,Programme Expenditure,,
UK Statistics Authority,Office for National Statistics,28/04/2020,Software Licences At Cost - Additions,IT Operations,Probrand Ltd,181525,"66,416.71", Sofware Licenses,SME,Programme Expenditure,,
UK Statistics Authority,Office for National Statistics,28/04/2020,Exp - Permanent Uk Staff - Fast Stream Costs,Stakeholder Engagement And Comms,Cabinet Office,181527,"27,436.00", Fast Stream Recruitment Services,Large,Programme Expenditure,,
UK Statistics Authority,Office for National Statistics,28/04/2020,Other Goods And Services,Ask Business Services,Cabinet Office,181527,268.8, Fast Stream Recruitment Services,Large,Programme Expenditure,,
UK Statistics Authority,Office for National Statistics,28/04/2020,Other Goods and Services,Census CCS Data Collection,Adecco UK Limited,181529,"1,448,359.92", Census People Services ,SME,Programme Expenditure,,
UK Statistics Authority,Office for National Statistics,29/04/2020,Surveys,Census & Soc Methodology Dd,University of Southampton,181605,"28,188.00", Census Statistical Services,SME,Programme Expenditure,,
UK Statistics Authority,Office for National Statistics,29/04/2020,Exp - Purchase Of Goods/Services - IT Contractual Services,Tech Delivery Legacy Sp,IBM United Kingdom Ltd,181606,"31,439.02", Information Management Services,Large,Programme Expenditure,,
UK Statistics Authority,Office for National Statistics,29/04/2020,Exp - Purchase Of Goods/Services - Contractor Travel,Tech Delivery Legacy Sp,IBM United Kingdom Ltd,181606,751.16, Information Management Services,Large,Programme Expenditure,,
UK Statistics Authority,Office for National Statistics,29/04/2020,Exp - Purchase Of Goods And Services Consultants,Productivity Research And Professional Development,IPSOS MORI,181610,"31,959.60", Statistical Services,Large,Programme Expenditure,,
UK Statistics Authority,Office for National Statistics,29/04/2020,Exp - Purchase Of Goods And Services Consultants,Tech Delivery SRS,Equiniti-TopLevel,181614,"4,585.68", Information Management Services,SME,Programme Expenditure,,
UK Statistics Authority,Office for National Statistics,29/04/2020,Exp - Purchase Of Goods/Services - IT Contractual Services,Tech Delivery SRS,Equiniti-TopLevel,181614,"69,937.92", Information Manangement Services,SME,Programme Expenditure,,
UK Statistics Authority,Office for National Statistics,27/04/2020,Rent Payable,Property Titchfield,Eaton Aerospace Limited,30001961,"28,188.60",Rental Charges for Car Parking at Titchfield,Large,Programme Expenditure,,
